bitfinex/quotes_ETHUSD_20251201
["timestamp","ask_amount","ask_price","bid_price","bid_amount"]
[1764551489580,1.07235135,2850.3,2849.6,0.48]
[1764551489803,0.002,2850.5,2850.2,0.1915]
[1764551490703,0.002,2850.5,2849.5,11.27791288]
[1764551490704,7.4781204,2850.5,2849.5,0.74986593]
[1764551490863,0.34675724,2850.4,2849.6,0.51509264]
[1764551491061,0.34675724,2850.4,2849.7,7.01828262]
[1764551491261,0.34675724,2850.4,2849.8,0.48]
[1764551491498,0.002,2850.5,2850.3,0.6473]
[1764551491804,0.002,2850.5,2849.8,1.22982826]
[1764551492100,0.002,2850.5,2849.9,0.48]
[1764551492305,0.72759411,2850.5,2849.8,0.74982826]
[1764551492476,0.34675724,2850.4,2849.6,3.50925448]
[1764551492812,0.002,2850.5,2850.3,0.6473]
[1764551493119,0.002,2850.5,2850.4,3.97057953]
[1764551493665,0.002,2850.5,2850.4,0.4623]
[1764551493917,0.002,2850.5,2850.4,0.9423]
[1764551494792,0.002,2850.5,2850.4,0.4623]
[1764551495191,0.002,2850.5,2850.1,0.665]
[1764551495396,0.002,2850.5,2850.1,0.185]
[1764551495908,0.002,2850.5,2850.4,0.4623]
[1764551496116,0.002,2850.5,2849.9,3.73883908]
[1764551496322,0.002,2850.5,2850.2,0.48]
[1764551496474,0.002,2850.5,2850.1,0.185]
[1764551496675,0.002,2850.5,2850.1,0.665]
[1764551497165,0.34875724,2850.5,2850.1,0.185]
[1764551497611,0.34675724,2850.4,2849.9,0.23]
[1764551497817,0.002,2850.5,2849.9,3.73888986]
[1764551498108,0.34875724,2850.5,2849.9,4.16077885]
[1764551498280,0.002,2850.5,2850.0,0.6715]
[1764551498785,0.34875724,2850.5,2850.0,0.6715]
[1764551499010,0.34875724,2850.5,2849.8,3.50896671]
[1764551499011,0.34675724,2850.2,2849.5,3.98931162]
[1764551499207,0.34675724,2850.2,2849.5,4.25926477]
[1764551499386,0.34675724,2850.2,2849.5,3.5093858]
[1764551499569,0.232,2850.5,2849.5,3.5093858]
[1764551499570,3.85694559,2850.5,2849.6,0.51509264]
[1764551500109,0.34675724,2850.3,2849.6,0.51509264]
[1764551500402,0.34675724,2850.3,2849.6,0.48]
[1764551500970,0.002,2850.5,2849.7,0.03509141]
[1764551501175,3.8569176,2850.5,2849.8,3.50901817]
[1764551501384,0.34875724,2850.5,2849.8,3.98901817]
[1764551501616,0.002,2850.5,2850.4,0.6473]
[1764551502476,0.002,2850.5,2850.4,1.1273]
[1764551503007,0.002,2850.5,2849.8,10.75705451]
[1764551503008,0.002,2850.5,2850.0,0.6715]
[1764551503231,0.002,2850.5,2850.4,3.97057953]
[1764551503372,0.002,2851.1,2850.7,0.4623]
[1764551503578,7.01065618,2852.8,2851.1,0.32864066]
[1764551503924,3.85208533,2852.8,2851.2,0.23]
[1764551504223,0.72559411,2852.1,2851.1,0.179]
[1764551504372,0.72559411,2852.1,2850.5,3.50815646]
[1764551504373,0.34675724,2851.5,2850.6,0.48]
[1764551504579,0.34675724,2851.5,2850.7,0.39881565]
[1764551504881,0.34675724,2851.5,2850.5,0.48]
[1764551505114,0.34675724,2851.5,2850.4,7.01654444]
[1764551505115,0.34675724,2851.5,2850.6,0.48]
[1764551505314,3.50692617,2851.5,2850.6,3.9879429]
[1764551505615,0.34675724,2851.4,2850.6,3.98800079]
[1764551505791,0.34675724,2851.4,2850.7,0.48]
[1764551505976,11.56691923,2852.2,2850.7,0.48]
[1764551505977,0.4598,2852.6,2851.3,0.6347]
[1764551506176,0.34675724,2852.1,2851.3,0.6347]
[1764551506409,0.34675724,2852.1,2851.3,1.1147]
[1764551506921,0.34675724,2851.9,2851.3,0.6347]
[1764551507276,0.4598,2852.2,2851.3,1.1147]
[1764551507478,3.96538431,2852.6,2851.4,7.49409832]
[1764551507711,8.06074158,2852.3,2851.3,0.1724]
[1764551507899,0.34675724,2851.8,2851.3,3.67956717]
[1764551508286,0.34675724,2851.8,2851.3,0.1724]
[1764551508485,0.34675724,2851.8,2851.3,3.67956551]
[1764551508903,0.34675724,2852.1,2851.4,0.48]
[1764551509102,0.34675724,2852.1,2851.3,3.67956551]
[1764551509302,0.34675724,2852.2,2851.3,4.52752206]
[1764551509503,0.34675724,2851.9,2851.3,4.52752206]
[1764551510624,0.1924,2851.9,2851.3,0.54035655]
[1764551510989,0.34675724,2851.7,2851.3,0.54035655]
[1764551511187,0.34675724,2851.7,2851.3,4.0475211]
[1764551511423,0.34675724,2851.7,2851.3,4.5275211]
[1764551511697,0.1924,2851.9,2851.2,0.23]
[1764551511698,3.50662493,2851.8,2851.2,0.23]
[1764551511905,3.50662493,2851.8,2850.7,0.1915]
[1764551511906,0.75135724,2851.3,2850.7,0.1915]
[1764551512231,0.34675724,2851.3,2850.7,0.1915]
[1764551512379,0.34675724,2851.3,2850.8,0.03507787]
[1764551512584,8.53494158,2852.5,2851.2,0.4932]
[1764551512812,0.34675724,2852.1,2851.2,0.4932]
[1764551513180,0.34675724,2852.1,2851.2,0.9532]
[1764551513385,0.34675724,2852.1,2851.3,0.23]
[1764551513586,0.34675724,2852.1,2851.4,3.50704916]
[1764551513827,3.85295015,2852.1,2851.3,4.19713265]
[1764551514035,3.85295015,2852.1,2851.3,4.96758469]
[1764551514180,3.85295015,2852.1,2851.3,0.23]
[1764551514385,0.34675724,2851.7,2851.3,0.23]
[1764551514682,0.34675724,2851.7,2851.3,3.73715216]
[1764551514910,3.85295015,2852.1,2851.4,0.46]
[1764551515114,7.01238582,2852.1,2851.4,0.46]
[1764551515339,0.34675724,2852.2,2851.4,0.46]
[1764551515543,0.4742,2852.7,2851.5,7.04882708]
[1764551515752,0.34675724,2852.4,2851.5,3.50683165]
[1764551517067,0.34675724,2852.4,2851.4,4.38676311]
[1764551517068,0.82095724,2852.4,2851.4,0.87971522]
[1764551517258,0.82095724,2852.4,2851.5,0.46]
[1764551517547,0.82095724,2852.4,2851.6,3.50680319]
[1764551517548,3.50581966,2852.4,2851.6,3.50680319]
[1764551517748,4.08248739,2852.5,2851.6,3.50680319]
[1764551517919,0.57675724,2852.5,2851.7,0.4950668]
[1764551518121,4.08246067,2852.5,2851.7,0.860187]
[1764551518320,3.85246067,2852.5,2851.7,0.860187]
[1764551518579,0.34675724,2852.5,2851.8,0.46]
[1764551518713,0.34675724,2852.8,2851.8,0.46]
[1764551518917,0.34675724,2852.5,2851.8,0.23]
[1764551519120,0.82095724,2852.5,2851.6,3.50680319]
[1764551519418,1.07235135,2852.8,2851.7,0.69]
[1764551519639,0.72559411,2852.6,2851.8,3.50655726]
[1764551519839,0.72559411,2852.7,2851.8,7.50818009]
[1764551520157,0.72559411,2852.7,2851.8,3.96655726]
[1764551520527,0.002,2852.9,2852.6,0.6656]
[1764551520731,0.002,2852.9,2852.8,0.4932]
[1764551520929,0.002,2852.9,2852.3,0.23]
[1764551520930,0.002,2852.5,2852.3,0.69]
[1764551521151,0.002,2852.5,2852.3,0.23]
[1764551521524,0.002,2852.5,2852.4,3.99901966]
[1764551521769,0.002,2852.5,2852.4,5.56326006]
[1764551521918,0.002,2852.5,2852.4,6.02326006]
[1764551522621,0.002,2852.5,2852.4,6.35190072]
[1764551522858,0.002,2852.5,2852.4,6.02326006]
[1764551523163,0.002,2852.5,2852.4,6.25326006]
[1764551523346,0.002,2852.5,2852.4,6.58190072]
[1764551523528,0.002,2852.5,2852.4,11.04746206]
[1764551523731,0.002,2852.5,2852.4,10.81068606]
[1764551523921,0.002,2852.5,2852.4,6.25326006]
[1764551524117,0.002,2852.5,2852.2,0.1915]
[1764551524525,0.002,2852.5,2851.9,0.4215]
[1764551525021,0.002,2852.5,2852.4,0.4932]
[1764551525338,0.002,2852.5,2851.9,0.4215]
[1764551525339,0.002,2852.5,2851.9,0.1915]
[1764551525520,0.002,2852.5,2852.1,3.50618842]
[1764551525718,0.002,2852.5,2851.9,0.1915]
[1764551525942,0.002,2852.5,2852.0,0.03506311]
[1764551526543,0.002,2852.5,2851.9,3.69788686]
[1764551526936,0.002,2852.5,2852.0,0.03506311]
[1764551527478,0.002,2852.5,2852.0,0.46]
[1764551527765,0.002,2852.5,2852.1,3.50618842]
[1764551527971,0.002,2852.5,2852.2,0.03506065]
[1764551528961,0.002,2852.5,2852.2,1.24581655]
[1764551529125,0.002,2852.5,2852.2,0.78581655]
[1764551529320,0.002,2852.5,2852.1,7.01237684]
[1764551529527,0.002,2852.5,2852.4,3.99901966]
[1764551529725,0.002,2852.5,2852.4,4.03407785]
[1764551530254,0.002,2852.5,2852.2,4.19494335]
[1764551530255,0.002,2852.5,2852.2,0.229]
[1764551530456,0.002,2852.5,2852.4,0.4932]
[1764551530655,0.002,2852.5,2852.2,3.73498202]
[1764551530861,0.002,2852.5,2852.2,4.19498202]
[1764551531729,0.002,2852.5,2852.2,7.70104751]
[1764551531924,0.002,2852.5,2852.2,0.689]
[1764551532133,0.002,2852.5,2852.4,0.4932]
[1764551532629,0.002,2852.5,2852.4,0.9532]
[1764551532831,0.002,2852.5,2852.2,0.41951749]
[1764551533031,0.002,2852.5,2852.0,0.229]
[1764551533751,0.002,2852.5,2852.1,0.03506188]
[1764551534064,0.002,2852.5,2852.0,0.229]
[1764551534065,0.4762,2852.5,2852.0,0.229]
[1764551534229,0.34675724,2852.3,2852.0,0.229]
[1764551534435,0.002,2852.5,2852.1,0.03506188]
[1764551535061,0.002,2852.5,2852.4,0.4932]
[1764551535263,0.002,2852.5,2852.4,1.21725819]
[1764551535565,0.002,2852.5,2852.1,0.72559411]
[1764551535775,0.1974,2852.2,2851.2,0.1915]
[1764551536059,8.53694158,2852.5,2851.2,0.1915]
[1764551536060,0.1738,2852.1,2851.3,0.689]
[1764551536266,0.1738,2852.1,2851.4,0.43877721]
[1764551536869,0.1738,2852.1,2851.4,0.89877721]
[1764551537165,0.34675724,2852.3,2851.4,0.89877721]
[1764551537575,0.4742,2852.3,2851.4,0.43877721]
[1764551537748,0.34675724,2852.2,2851.5,7.01385234]
[1764551538278,0.34675724,2852.2,2851.5,7.85457471]
[1764551538475,0.34675724,2852.2,2851.5,0.84072237]
[1764551538668,0.82095724,2852.2,2851.4,3.50701162]
[1764551538865,0.34675724,2852.2,2851.4,3.96701162]
[1764551539078,0.4742,2852.3,2851.4,3.96701162]
[1764551539282,0.4742,2852.3,2851.4,7.47406078]
[1764551539652,0.4742,2852.3,2851.3,0.229]
[1764551539653,7.01213098,2852.2,2851.3,0.229]
[1764551539851,3.50606549,2852.2,2851.3,7.24329712]
[1764551540177,0.34675724,2851.9,2851.3,3.73617216]
[1764551540481,0.34675724,2851.9,2851.3,7.24334432]
[1764551541346,0.4504,2851.4,2851.0,0.001]
[1764551541547,0.34675724,2851.5,2851.0,0.001]
[1764551541848,0.79715724,2851.1,2851.0,0.001]
[1764551542551,1.19005724,2851.1,2851.0,0.001]
[1764551542984,1.19005724,2851.1,2850.8,0.001]
[1764551543303,10.08559638,2850.6,2850.5,0.001]
[1764551543605,1.72015135,2850.6,2850.5,0.001]
[1764551543790,5.67818474,2850.6,2850.5,0.001]
[1764551544479,5.44918474,2850.6,2850.5,0.001]
[1764551544691,5.67818474,2850.6,2850.5,0.001]
[1764551545116,5.3314275,2850.6,2850.5,0.001]
[1764551545271,5.44918474,2850.6,2850.5,0.001]
[1764551545471,5.67818474,2850.6,2850.5,0.001]
[1764551545671,14.28592577,2850.6,2850.5,0.001]
[1764551545891,14.69142977,2850.6,2850.5,0.001]
[1764551548405,5.85468874,2850.6,2850.5,0.001]
[1764551548585,6.08368874,2850.6,2850.5,0.001]
[1764551549483,5.7369315,2850.6,2850.5,0.001]
[1764551549814,6.08368874,2850.6,2850.5,0.001]
[1764551550394,5.85468874,2850.6,2850.5,0.001]
[1764551550606,2.17015135,2850.6,2850.5,0.001]
[1764551550811,5.67818474,2850.6,2850.5,0.001]
[1764551551007,6.08368874,2850.6,2850.5,0.001]
[1764551554098,5.85468874,2850.6,2850.5,0.001]
[1764551554304,6.08368874,2850.6,2850.5,0.001]
[1764551554520,6.08368874,2850.6,2849.5,0.001]
[1764551554677,10.33103914,2849.6,2849.5,0.001]
[1764551554878,10.90679638,2849.6,2849.5,0.001]
[1764551555100,11.36429638,2849.6,2849.5,0.001]
[1764551556003,14.87356083,2849.6,2849.5,0.001]
[1764551556303,14.64456083,2849.6,2849.5,0.001]
[1764551556514,6.0368198,2849.6,2849.5,0.001]
[1764551556714,6.2658198,2849.6,2849.5,0.001]
[1764551557089,5.91906256,2849.6,2849.5,0.001]
[1764551557276,6.2658198,2849.6,2849.5,0.001]
[1764551557480,6.0368198,2849.6,2849.5,0.001]
[1764551557700,5.8083198,2849.6,2849.5,0.001]
[1764551557901,0.34675724,2849.6,2849.5,0.001]
[1764551558091,0.34675724,2849.6,2849.5,0.5009]
[1764551558487,3.50815646,2850.5,2849.5,0.9819]
[1764551558691,0.34675724,2850.4,2849.8,0.4999]
[1764551559095,1.07235135,2850.4,2849.8,0.4999]
[1764551559293,0.72559411,2850.4,2849.8,0.9809]
[1764551559583,3.73715646,2850.5,2849.8,0.9809]
[1764551559584,0.229,2851.0,2850.3,0.6864]
[1764551559784,1.07235135,2851.1,2850.4,0.4999]
[1764551560094,3.85358082,2851.6,2851.0,0.4999]
[1764551560285,0.229,2851.5,2850.5,3.50815646]
[1764551560487,1.30135135,2851.5,2850.6,0.481]
[1764551560882,1.07235135,2851.5,2850.6,0.481]
[1764551561093,0.34675724,2851.5,2850.6,0.481]
[1764551561319,0.57575724,2851.5,2850.6,0.481]
[1764551561525,0.34875724,2851.9,2851.4,0.6685]
[1764551561704,0.002,2851.9,2851.8,0.4999]
[1764551561909,0.002,2851.9,2851.4,0.1686]
[1764551562113,0.002,2851.9,2851.6,3.50680319]
[1764551562313,0.34675724,2851.8,2851.4,0.1686]
[1764551562619,0.002,2851.9,2851.8,0.4999]
[1764551563028,0.002,2852.5,2851.8,0.9809]
[1764551563319,0.002,2852.5,2852.1,0.4999]
[1764551563682,0.002,2852.5,2852.1,0.9809]
[1764551563885,0.002,2852.5,2852.1,1.30954066]
[1764551564086,0.002,2852.5,2852.1,5.21268253]
[1764551564281,0.002,2852.5,2852.1,6.21108611]
[1764551564885,0.002,2852.5,2852.1,6.53972677]
[1764551565213,0.002,2852.5,2852.1,6.44008611]
[1764551565413,0.002,2852.5,2852.1,6.76872677]
[1764551565616,0.002,2852.5,2852.1,6.44008611]
[1764551566320,0.002,2852.5,2852.1,6.84559011]
[1764551566619,0.002,2852.5,2852.1,10.18687411]
[1764551566816,0.002,2852.5,2852.2,1.13109811]
[1764551567016,0.002,2852.5,2852.4,0.4999]
[1764551567225,0.002,2852.5,2852.4,2.44063877]
[1764551567428,0.002,2852.8,2852.4,11.33225211]
[1764551567628,0.002,2852.8,2852.7,20.90100966]
[1764551567815,0.002,2852.8,2852.7,11.54529866]
[1764551568018,0.002,2852.8,2852.7,7.65708053]
[1764551568222,0.002,2852.8,2852.7,11.1625315]
[1764551568420,0.002,2852.8,2852.7,8.6062365]
[1764551568616,0.002,2852.8,2852.7,6.6040255]
[1764551568817,0.002,2852.8,2852.7,11.5220625]
[1764551569019,0.002,2852.8,2852.7,11.2544035]
[1764551569222,0.002,2852.8,2852.7,11.97999761]
[1764551569400,0.002,2852.8,2852.7,34.61350161]
[1764551569736,0.002,2853.5,2852.7,34.61350161]
[1764551569737,0.002,2853.5,2853.1,12.29132577]
[1764551569901,0.002,2853.5,2853.4,3.26323066]
[1764551570100,0.002,2853.5,2853.4,4.93557324]
[1764551570296,0.002,2853.5,2853.4,12.65648725]
[1764551570501,0.851,2855.0,2854.1,0.72559411]
[1764551570800,0.851,2855.0,2854.9,0.1865]
[1764551570998,0.851,2855.0,2854.8,0.229]
[1764551571414,0.851,2855.0,2854.8,0.71]
[1764551571817,0.851,2855.0,2854.8,0.229]
[1764551572229,0.851,2855.0,2854.9,3.50274965]
[1764551572533,0.851,2855.0,2854.8,3.7318524]
[1764551572832,0.851,2855.0,2854.8,0.6798]
[1764551573029,0.851,2855.0,2854.8,4.18266551]
[1764551573607,0.853,2855.0,2854.8,0.229]
[1764551575613,0.853,2855.0,2854.8,3.7318697]
[1764551575815,0.853,2855.0,2854.9,0.4511]
[1764551576023,0.853,2855.0,2854.9,0.9019]
[1764551576338,0.853,2855.0,2854.8,0.229]
[1764551577840,0.853,2855.0,2854.8,3.73186776]
[1764551579452,0.853,2855.0,2854.9,0.9019]
[1764551579604,0.853,2855.0,2854.9,1.62749411]
[1764551580009,0.002,2855.3,2855.1,0.72559411]
[1764551580240,0.002,2855.3,2855.2,0.0664]
[1764551580423,0.002,2855.6,2855.2,0.0664]
[1764551580424,0.002,2855.6,2855.3,0.405504]
[1764551580630,0.1915,2857.1,2855.8,0.405504]
[1764551580956,0.1915,2857.1,2855.5,0.471904]
[1764551580957,0.34675724,2856.2,2855.5,0.229]
[1764551581246,0.229,2856.6,2855.5,0.229]
[1764551581404,0.34675724,2856.0,2855.5,0.229]
[1764551581605,0.1876,2856.1,2855.5,0.229]
[1764551581805,0.83305724,2856.0,2855.5,0.229]
[1764551582020,0.6739,2856.1,2855.5,0.229]
[1764551582239,0.34675724,2856.0,2855.5,0.229]
[1764551582491,0.1876,2856.1,2855.5,3.73101365]
[1764551582958,4.175245,2856.1,2855.5,0.229]
[1764551583163,4.52200224,2856.1,2855.5,0.229]
[1764551583334,1.02065724,2856.1,2855.5,0.229]
[1764551583538,1.02065724,2856.1,2855.5,3.73091711]
[1764551583863,4.52194237,2856.1,2855.5,0.229]
[1764551584044,4.17518513,2856.1,2855.5,0.229]
[1764551584248,0.1876,2856.1,2855.5,3.73100802]
[1764551584578,0.1876,2856.1,2855.5,0.229]
[1764551584579,0.4863,2856.0,2855.5,0.229]
[1764551584738,0.1876,2856.1,2855.5,3.7309185]
[1764551584938,3.68892247,2856.1,2855.5,3.7309185]
[1764551585137,4.17519762,2856.1,2855.5,0.229]
[1764551585455,0.1876,2856.1,2855.5,3.73100602]
[1764551585654,0.1876,2856.1,2855.6,0.72559411]
[1764551585857,0.1876,2856.5,2855.6,0.72559411]
[1764551586024,0.6739,2856.5,2855.6,0.72559411]
[1764551586226,1.02065724,2856.5,2855.6,0.72559411]
[1764551586433,1.02065724,2856.5,2855.7,0.72559411]
[1764551586665,1.02065724,2856.5,2855.8,0.7729343]
[1764551586963,0.4863,2856.4,2855.7,0.72559411]
[1764551587527,0.95459411,2857.0,2855.7,0.76061179]
[1764551587528,7.34735228,2856.9,2855.7,0.76061179]
[1764551587760,7.83365228,2856.9,2855.7,0.76061179]
[1764551587958,0.4863,2856.8,2855.7,0.76061179]
[1764551588534,0.4863,2856.8,2855.8,7.00329154]
[1764551588735,7.4871601,2856.8,2855.5,0.229]
[1764551588961,0.34675724,2856.4,2855.6,0.72559411]
[1764551589294,0.91709411,2857.1,2855.7,7.09362468]
[1764551589435,0.002,2857.2,2856.3,0.0644]
[1764551589738,0.002,2857.2,2856.4,0.228]
[1764551589964,0.002,2857.2,2856.4,0.2924]
[1764551590161,0.002,2857.2,2856.4,0.228]
[1764551590362,0.002,2857.2,2856.5,0.0644]
[1764551590566,0.002,2857.2,2856.5,7.00157534]
[1764551590754,0.002,2857.2,2855.8,0.469904]
[1764551590955,0.34675724,2856.8,2855.5,3.56730846]
[1764551591188,0.34675724,2856.9,2855.9,0.228]
[1764551591398,0.4883,2857.2,2856.0,0.035014]
[1764551591399,0.34875724,2857.2,2856.0,0.035014]
[1764551591576,0.34875724,2857.2,2856.0,0.099414]
[1764551591887,0.83505724,2857.2,2856.0,0.42805466]
[1764551592101,0.83505724,2857.2,2856.1,0.32864066]
[1764551592386,0.002,2857.2,2856.4,0.32864066]
[1764551592587,0.4863,2857.1,2856.5,0.228]
[1764551592961,0.4863,2857.1,2855.5,3.50290846]
[1764551592962,0.6677,2856.6,2855.7,7.00353678]
[1764551593294,0.6677,2856.6,2855.5,0.001]
[1764551593295,0.405504,2856.5,2855.5,0.001]
[1764551593465,0.72559411,2856.3,2855.5,0.001]
[1764551593791,0.6677,2855.6,2855.5,0.001]
[1764551593994,1.01445724,2855.6,2855.5,0.001]
[1764551594289,1.02065724,2855.6,2855.5,0.001]
[1764551594590,4.17579102,2855.6,2855.5,0.001]
[1764551594791,0.6739,2855.6,2855.5,0.001]
[1764551594962,4.17579102,2855.6,2855.5,0.001]
[1764551595559,4.52254826,2855.6,2855.5,0.001]
[1764551596893,0.34675724,2855.1,2855.0,0.001]
[1764551597392,0.83305724,2855.1,2855.0,0.001]
[1764551597793,0.4863,2855.1,2855.0,0.001]
[1764551597994,0.83305724,2855.1,2855.0,0.001]
[1764551598210,1.31315724,2855.1,2855.0,0.001]
[1764551598375,1.71866124,2855.1,2855.0,0.001]
[1764551598701,16.45427251,2855.1,2853.1,0.0957]
[1764551598864,0.1876,2853.9,2853.2,3.73283667]
[1764551599068,0.1876,2853.9,2853.2,0.228]
[1764551599382,0.6739,2853.9,2853.2,0.228]
[1764551599586,0.6739,2853.9,2853.3,0.38286421]
[1764551600400,0.6739,2853.9,2853.2,0.228]
[1764551600604,0.34675724,2853.8,2853.2,0.228]
[1764551600790,0.1876,2854.2,2853.3,0.03504713]
[1764551600975,3.69122317,2854.2,2853.2,0.228]
[1764551601174,0.34675724,2854.0,2853.3,0.03504713]
[1764551601379,0.34675724,2854.0,2852.7,0.0664]
[1764551601586,0.34675724,2854.0,2852.1,0.0664]
[1764551601587,0.4801,2853.3,2852.4,0.0664]
[1764551601890,0.34675724,2853.6,2852.4,0.2944]
[1764551602069,0.34675724,2853.3,2852.4,0.2944]
[1764551602464,0.34675724,2853.2,2852.5,0.03505696]
[1764551602769,0.34675724,2853.2,2852.5,3.50569675]
[1764551602988,0.34675724,2853.2,2852.5,7.77704901]
[1764551603193,0.34675724,2853.2,2852.5,7.74199205]
[1764551603397,0.4863,2853.3,2852.6,0.03505573]
[1764551603899,0.34675724,2853.9,2852.6,0.82704984]
[1764551604202,0.4906,2853.8,2852.7,1.24033793]
[1764551604505,0.34675724,2853.7,2852.8,0.03505328]
[1764551604711,3.85108839,2853.7,2852.8,7.04570946]
[1764551604878,4.32718839,2853.7,2852.8,3.50532809]
[1764551605082,4.32718839,2853.7,2852.4,0.228]
[1764551605083,0.6726,2852.9,2852.4,0.228]
[1764551605408,0.6726,2852.9,2852.5,0.03505696]
[1764551605608,0.6726,2852.9,2852.4,0.228]
[1764551605975,0.4761,2852.8,2852.4,0.228]
[1764551606203,0.53225724,2852.9,2852.5,0.03505696]
[1764551606410,0.53225724,2852.9,2852.5,0.37688126]
[1764551606701,0.53225724,2852.9,2852.5,3.91761042]
[1764551606908,1.00835724,2852.9,2852.5,3.88255346]
[1764551607097,1.00835724,2852.9,2852.6,0.03505573]
[1764551607416,0.4761,2852.8,2852.4,0.228]
[1764551607711,0.53225724,2852.9,2852.5,0.03505696]
[1764551607879,3.5031747,2854.6,2852.5,0.03505696]
[1764551607880,0.4761,2853.8,2852.8,0.0664]
[1764551608074,0.7041,2853.8,2852.6,0.228]
[1764551608296,0.7041,2853.8,2852.7,0.0350545]
[1764551608505,0.4761,2853.7,2852.6,0.228]
[1764551608753,0.34675724,2853.5,2852.8,7.01065618]
[1764551608914,0.1896,2855.0,2853.6,0.0664]
[1764551609210,0.34675724,2854.8,2853.7,0.228]
[1764551609372,0.4761,2854.9,2853.7,0.228]
[1764551609373,0.34675724,2854.7,2853.7,0.228]
[1764551609773,0.34675724,2854.7,2853.8,0.03504099]
[1764551609774,0.4761,2854.7,2853.8,0.03504099]
[1764551609980,0.4761,2854.7,2853.7,0.228]
[1764551610180,0.4761,2854.7,2853.7,0.26304222]
[1764551610391,0.34675724,2854.8,2853.7,0.26304222]
[1764551610590,0.1896,2855.0,2853.8,0.39504066]
[1764551610888,0.1896,2855.0,2853.9,10.51193103]
[1764551611208,0.82285724,2854.9,2854.0,1.09069717]
[1764551611597,0.4761,2854.9,2854.0,1.09069717]
[1764551611781,0.4761,2854.8,2854.0,1.09069717]
[1764551612091,0.34675724,2854.6,2854.0,1.09069717]
[1764551612296,0.4761,2854.8,2853.6,0.72559411]
[1764551612488,0.4761,2854.8,2853.8,0.228]
[1764551612489,0.34675724,2854.7,2853.8,0.228]
[1764551612891,0.1855,2853.9,2853.3,0.72559411]
[1764551613092,7.48230652,2854.7,2853.5,0.72559411]
[1764551613093,0.34675724,2854.4,2853.5,0.72559411]
[1764551613408,0.82285724,2854.4,2853.4,0.228]
[1764551613615,0.34675724,2854.1,2853.4,1.02432675]
[1764551614716,0.34675724,2854.2,2853.4,1.02432675]
[1764551614903,0.34675724,2854.2,2853.6,0.72559411]
[1764551615219,0.34675724,2854.2,2853.7,0.03504222]
[1764551615416,0.4761,2854.4,2853.5,0.72559411]
[1764551615604,0.34675724,2854.7,2853.6,0.87590508]
[1764551615983,0.34675724,2854.6,2853.6,0.87590508]
[1764551616189,8.23528732,2855.0,2853.6,0.87590508]
[1764551616190,0.002,2855.0,2854.6,0.0667]
[1764551616410,0.002,2855.0,2854.9,0.32864066]
[1764551616589,0.002,2855.0,2854.7,0.228]
[1764551616788,0.002,2855.0,2854.9,4.22834376]
[1764551617006,0.002,2855.0,2854.9,5.64466659]
[1764551617318,0.002,2855.0,2854.9,5.71136659]
[1764551617817,0.002,2855.0,2854.9,16.59799959]
[1764551618015,0.002,2855.0,2854.9,13.7285113]
[1764551618899,0.002,2855.3,2855.2,0.73414466]
[1764551619105,0.002,2855.3,2855.2,13.52335394]
[1764551619396,0.002,2855.3,2855.2,13.83445005]
[1764551619610,0.002,2855.3,2855.2,10.49260205]
[1764551619822,0.002,2855.3,2855.2,2.14621739]
[1764551620120,0.002,2855.3,2855.2,7.88708611]
[1764551620329,0.002,2855.3,2855.2,6.45489511]
[1764551620488,0.002,2855.3,2855.2,0.95359411]
[1764551620692,0.002,2855.3,2855.2,1.02029411]
[1764551620917,0.002,2855.3,2855.2,4.52267572]
[1764551621113,0.002,2855.3,2855.2,5.32519438]
[1764551621314,0.002,2855.3,2855.2,7.90323038]
[1764551621511,0.002,2855.3,2855.2,10.72766404]
[1764551621809,0.002,2855.3,2855.2,5.25849438]
[1764551622324,0.002,2855.3,2855.2,16.07417638]
[1764551622529,0.002,2855.3,2855.2,5.39189438]
[1764551622825,0.002,2855.3,2855.2,7.78931238]
[1764551622992,0.002,2855.3,2855.2,7.85601238]
[1764551623630,0.002,2855.3,2855.2,5.39189438]
[1764551623917,0.002,2855.3,2855.2,5.29351819]
[1764551624123,0.002,2855.3,2855.2,5.25849438]
[1764551624302,0.002,2855.3,2855.2,5.36021819]
[1764551624704,0.002,2855.3,2855.2,5.32519438]
[1764551624899,0.002,2855.3,2855.2,5.25849438]
[1764551626002,0.002,2855.3,2855.2,5.03049438]
[1764551626208,0.002,2855.3,2855.2,0.03502381]
[1764551626403,0.9652,2855.3,2855.1,0.228]
[1764551626619,0.002,2855.3,2855.2,0.03502381]
[1764551627023,0.002,2855.3,2855.2,3.53740542]
[1764551627703,0.9652,2855.3,2855.2,3.53740542]
[1764551628199,0.4891,2855.3,2855.2,3.53740542]
[1764551628401,0.002,2855.3,2855.2,3.53740542]
[1764551628812,0.002,2855.3,2854.8,0.72659411]
[1764551628813,0.9652,2855.3,2855.0,3.50260987]
[1764551629011,0.9652,2855.3,2854.8,3.50385323]
[1764551629012,0.4871,2855.2,2854.9,3.50274965]
[1764551629231,0.9632,2855.2,2854.9,3.50274965]
[1764551629625,0.002,2855.3,2855.0,0.03502626]
[1764551629813,0.002,2855.3,2854.9,3.50274965]
[1764551629814,0.4761,2855.2,2854.9,3.50274965]
[1764551630009,0.4761,2855.2,2854.8,0.229]
[1764551630010,0.4871,2855.0,2854.8,0.229]
[1764551630227,0.6312,2854.9,2854.8,0.229]
[1764551630712,1.1073,2854.9,2854.8,0.229]
[1764551630941,1.1073,2854.9,2854.8,0.001]
[1764551631538,4.61004965,2854.9,2854.8,0.001]
[1764551631716,4.95680689,2854.9,2854.8,0.001]
[1764551631915,1.45405724,2854.9,2854.8,0.001]
[1764551632122,0.002,2855.3,2854.8,0.001]
[1764551632326,0.4761,2855.2,2854.8,0.001]